[Event "Late-Titled-Tuesday-Blitz-May-07-2024"]
[Site "Chess.com"]
[Date "2024.05.07"]
[Round "4"]
[White "ATM622"]
[Black "Hirna2005"]
[Result "1-0"]
[WhiteElo "2524"]
[BlackElo "2326"]
[TimeControl "180+1"]
[EndTime "14:34:09 PDT"]
[Termination "ATM622 won by resignation"]

1. d4 {[%clk 0:03:00.9]} 1... g6 {[%clk 0:03:00.5]} 2. g3 {[%clk 0:02:59.6]}
2... Bg7 {[%clk 0:03:00.8]} 3. Nf3 {[%clk 0:02:56.8]} 3... d6 {[%clk 0:03:01.2]}
4. Bg2 {[%clk 0:02:55.7]} 4... Nf6 {[%clk 0:03:00.6]} 5. O-O {[%clk 0:02:55.7]}
5... O-O {[%clk 0:03:00.5]} 6. c4 {[%clk 0:02:52.2]} 6... Bf5 {[%clk 0:03:00]}
7. Nc3 {[%clk 0:02:50.5]} 7... Qc8 {[%clk 0:02:59.7]} 8. Re1 {[%clk 0:02:44.3]}
8... Ne4 {[%clk 0:02:59.1]} 9. Nxe4 {[%clk 0:02:37.5]} 9... Bxe4 {[%clk
0:02:59]} 10. b3 {[%clk 0:02:35.9]} 10... c5 {[%clk 0:02:57.7]} 11. Bb2 {[%clk
0:02:35]} 11... Nc6 {[%clk 0:02:57.8]} 12. e3 {[%clk 0:02:33.5]} 12... Nb4
{[%clk 0:02:38]} 13. Re2 {[%clk 0:02:19.2]} 13... Qf5 {[%clk 0:02:32.6]} 14. Nh4
{[%clk 0:02:10.6]} 14... Bc2 {[%clk 0:02:17]} 15. Nxf5 {[%clk 0:02:06.9]} 15...
Bxd1 {[%clk 0:02:16.2]} 16. Nxe7+ {[%clk 0:02:06.8]} 16... Kh8 {[%clk
0:02:15.9]} 17. Rxd1 {[%clk 0:02:06.3]} 17... Rfe8 {[%clk 0:02:15.5]} 18. Nd5
{[%clk 0:02:05.7]} 18... cxd4 {[%clk 0:02:15.4]} 19. Nxb4 {[%clk 0:02:04.6]} 1-0

[Event "Late-Titled-Tuesday-Blitz-May-07-2024"]
[Site "Chess.com"]
[Date "2024.05.07"]
[Round "4"]
[White "DeTimmerman"]
[Black "guillembaches"]
[Result "1-0"]
[WhiteElo "2759"]
[BlackElo "2566"]
[TimeControl "180+1"]
[EndTime "14:34:11 PDT"]
[Termination "DeTimmerman won by resignation"]

1. b4 {[%clk 0:03:00]} 1... e5 {[%clk 0:02:59]} 2. Bb2 {[%clk 0:03:00.3]} 2...
Bxb4 {[%clk 0:02:58.9]} 3. Bxe5 {[%clk 0:02:59.6]} 3... Nf6 {[%clk 0:02:57.8]}
4. Nc3 {[%clk 0:02:59.9]} 4... O-O {[%clk 0:02:56.8]} 5. Bxf6 {[%clk 0:02:59.9]}
5... Qxf6 {[%clk 0:02:54.7]} 6. Nd5 {[%clk 0:03:00.8]} 6... Qd6 {[%clk
0:02:26.9]} 7. c4 {[%clk 0:03:00.4]} 7... Ba5 {[%clk 0:02:21.2]} 8. e3 {[%clk
0:03:00.2]} 8... c6 {[%clk 0:02:20]} 9. Nf4 {[%clk 0:02:59.9]} 9... Re8 {[%clk
0:02:15]} 10. Be2 {[%clk 0:02:59.6]} 10... Na6 {[%clk 0:02:08.1]} 11. Nf3 {[%clk
0:02:59]} 11... Qe6 {[%clk 0:02:06.8]} 12. Nxe6 {[%clk 0:02:57.7]} 1-0

[Event "Late-Titled-Tuesday-Blitz-May-07-2024"]
[Site "Chess.com"]
[Date "2024.05.07"]
[Round "4"]
[White "AungTZ"]
[Black "realburq"]
[Result "0-1"]
[WhiteElo "2091"]
[BlackElo "2344"]
[TimeControl "180+1"]
[EndTime "14:34:46 PDT"]
[Termination "realburq won by resignation"]

1. c4 {[%clk 0:02:55.8]} 1... e5 {[%clk 0:02:59.5]} 2. Nc3 {[%clk 0:02:55.3]}
2... Nf6 {[%clk 0:03:00.2]} 3. Nf3 {[%clk 0:02:55.5]} 3... Nc6 {[%clk 0:03:00]}
4. e3 {[%clk 0:02:55.1]} 4... Bb4 {[%clk 0:02:57.4]} 5. Qc2 {[%clk 0:02:53.8]}
5... O-O {[%clk 0:02:55.5]} 6. Nd5 {[%clk 0:02:53.6]} 6... Bc5 {[%clk
0:02:54.6]} 7. Ng5 {[%clk 0:02:52.2]} 7... g6 {[%clk 0:02:44.5]} 8. h4 {[%clk
0:02:51.7]} 8... h6 {[%clk 0:02:35.5]} 9. Nf3 {[%clk 0:02:20.1]} 9... d6 {[%clk
0:02:19.7]} 10. a3 {[%clk 0:02:18.9]} 10... Bf5 {[%clk 0:02:19.8]} 11. d3 {[%clk
0:02:18]} 11... Re8 {[%clk 0:02:13.4]} 12. b4 {[%clk 0:02:14.3]} 12... Bb6
{[%clk 0:02:10.9]} 13. Bb2 {[%clk 0:02:12.9]} 13... Nxd5 {[%clk 0:01:54.8]} 14.
cxd5 {[%clk 0:02:10.9]} 14... Ne7 {[%clk 0:01:50.6]} 15. Qb3 {[%clk 0:02:09.3]}
15... a5 {[%clk 0:01:45.5]} 16. b5 {[%clk 0:02:08.3]} 16... a4 {[%clk
0:01:45.2]} 17. Qc3 {[%clk 0:01:59.8]} 17... Ba5 {[%clk 0:01:45.2]} 0-1

[Event "Late-Titled-Tuesday-Blitz-May-07-2024"]
[Site "Chess.com"]
[Date "2024.05.07"]
[Round "4"]
[White "ccccvhhhj"]
[Black "JosephRyan"]
[Result "1-0"]
[WhiteElo "2492"]
[BlackElo "2221"]
[TimeControl "180+1"]
[EndTime "14:35:12 PDT"]
[Termination "ccccvhhhj won by resignation"]

1. e4 {[%clk 0:03:00.9]} 1... e5 {[%clk 0:02:57.9]} 2. Nf3 {[%clk 0:03:01.3]}
2... Nc6 {[%clk 0:02:51.9]} 3. d4 {[%clk 0:03:01.6]} 3... exd4 {[%clk
0:02:51.4]} 4. Nxd4 {[%clk 0:03:02.5]} 4... Bc5 {[%clk 0:02:48.2]} 5. Nb3 {[%clk
0:03:03]} 5... Bb6 {[%clk 0:02:45.4]} 6. Nc3 {[%clk 0:03:03.7]} 6... d6 {[%clk
0:02:43.3]} 7. Qe2 {[%clk 0:03:04.2]} 7... a5 {[%clk 0:02:42.9]} 8. a4 {[%clk
0:03:04.1]} 8... Nge7 {[%clk 0:02:37.5]} 9. Be3 {[%clk 0:03:04.6]} 9... Bxe3
{[%clk 0:02:34.2]} 10. Qxe3 {[%clk 0:03:05.5]} 10... Be6 {[%clk 0:02:33.8]} 11.
O-O-O {[%clk 0:03:05.7]} 11... O-O {[%clk 0:02:31.7]} 12. f3 {[%clk 0:03:03.7]}
12... Nb4 {[%clk 0:02:25.2]} 13. g4 {[%clk 0:03:00.5]} 13... Nec6 {[%clk
0:02:04.2]} 14. h4 {[%clk 0:02:57.8]} 14... Nxc2 {[%clk 0:02:03.1]} 15. Kxc2
{[%clk 0:02:53.1]} 15... Nb4+ {[%clk 0:02:01.7]} 16. Kb1 {[%clk 0:02:52.5]}
16... Bxb3 {[%clk 0:02:00.4]} 17. Rd2 {[%clk 0:02:49.9]} 17... Qd7 {[%clk
0:01:53.8]} 18. h5 {[%clk 0:02:33]} 18... Bxa4 {[%clk 0:01:38.5]} 19. h6 {[%clk
0:02:33.1]} 19... g6 {[%clk 0:01:33.3]} 20. Bc4 {[%clk 0:02:28.6]} 20... Qe7
{[%clk 0:01:21.4]} 21. f4 {[%clk 0:02:23.2]} 21... Bd7 {[%clk 0:01:19.1]} 22.
Qd4 {[%clk 0:02:16.4]} 1-0

[Event "Late-Titled-Tuesday-Blitz-May-07-2024"]
[Site "Chess.com"]
[Date "2024.05.07"]
[Round "4"]
[White "m_ezat"]
[Black "ploxoi"]
[Result "1-0"]
[WhiteElo "2576"]
[BlackElo "2348"]
[TimeControl "180+1"]
[EndTime "14:35:15 PDT"]
[Termination "m_ezat won by resignation"]

1. d4 {[%clk 0:03:00.5]} 1... d5 {[%clk 0:02:59.1]} 2. c4 {[%clk 0:03:00.9]}
2... e6 {[%clk 0:02:59.4]} 3. Nc3 {[%clk 0:03:01.5]} 3... c6 {[%clk 0:02:59.4]}
4. e4 {[%clk 0:03:00.3]} 4... dxe4 {[%clk 0:02:58.7]} 5. Nxe4 {[%clk 0:03:01.2]}
5... Bb4+ {[%clk 0:02:59]} 6. Bd2 {[%clk 0:03:01.9]} 6... Qxd4 {[%clk
0:02:57.4]} 7. Bxb4 {[%clk 0:03:02.1]} 7... Qxe4+ {[%clk 0:02:58]} 8. Be2 {[%clk
0:03:02.1]} 8... Na6 {[%clk 0:02:56.1]} 9. Bf8 {[%clk 0:03:01.6]} 9... Qxg2
{[%clk 0:02:41.4]} 10. Qd6 {[%clk 0:02:28.5]} 10... Qg5 {[%clk 0:02:02.6]} 11.
Nf3 {[%clk 0:02:05.2]} 11... Qa5+ {[%clk 0:01:42.8]} 12. b4 {[%clk 0:01:59.1]}
12... Nxb4 {[%clk 0:01:33.6]} 13. Qxb4 {[%clk 0:01:55.9]} 13... Qxb4+ {[%clk
0:01:34.2]} 14. Bxb4 {[%clk 0:01:55.7]} 14... Nf6 {[%clk 0:01:32.6]} 15. Rg1
{[%clk 0:01:53.8]} 15... g6 {[%clk 0:01:30.5]} 16. Bc3 {[%clk 0:01:52.6]} 16...
Ke7 {[%clk 0:01:30.9]} 17. O-O-O {[%clk 0:01:49.6]} 17... Re8 {[%clk 0:01:29.6]}
18. Bb4+ {[%clk 0:01:47.2]} 1-0

[Event "Late-Titled-Tuesday-Blitz-May-07-2024"]
[Site "Chess.com"]
[Date "2024.05.07"]
[Round "4"]
[White "jbking07"]
[Black "VD_coach"]
[Result "0-1"]
[WhiteElo "2394"]
[BlackElo "2597"]
[TimeControl "180+1"]
[EndTime "14:35:18 PDT"]
[Termination "VD_coach won by resignation"]

1. e4 {[%clk 0:03:00.9]} 1... c5 {[%clk 0:02:59.6]} 2. Nf3 {[%clk 0:03:01.2]}
2... d6 {[%clk 0:02:57]} 3. d4 {[%clk 0:02:59.9]} 3... cxd4 {[%clk 0:02:57.4]}
4. Nxd4 {[%clk 0:03:00.1]} 4... Nf6 {[%clk 0:02:57.9]} 5. Nc3 {[%clk 0:02:54.8]}
5... g6 {[%clk 0:02:58.2]} 6. f3 {[%clk 0:02:43.5]} 6... Nc6 {[%clk 0:02:57]} 7.
Be3 {[%clk 0:02:43.7]} 7... Bg7 {[%clk 0:02:55]} 8. Qd2 {[%clk 0:02:44.2]} 8...
O-O {[%clk 0:02:54.7]} 9. O-O-O {[%clk 0:02:44.3]} 9... Nxd4 {[%clk 0:02:54.9]}
10. Bxd4 {[%clk 0:02:44.3]} 10... Be6 {[%clk 0:02:55.5]} 11. Kb1 {[%clk
0:02:43.7]} 11... Qc7 {[%clk 0:02:54.1]} 12. g4 {[%clk 0:02:43.3]} 12... Rfc8
{[%clk 0:02:53.1]} 13. h4 {[%clk 0:02:42.9]} 13... Qa5 {[%clk 0:02:53.2]} 14. g5
{[%clk 0:02:36.5]} 14... Rxc3 {[%clk 0:02:21.9]} 15. Qxc3 {[%clk 0:02:36.5]}
15... Qxa2+ {[%clk 0:02:18.7]} 16. Kc1 {[%clk 0:02:36.5]} 16... Rc8 {[%clk
0:02:19.2]} 17. Qa3 {[%clk 0:02:30.7]} 17... Qxa3 {[%clk 0:02:18.7]} 18. bxa3
{[%clk 0:02:30.9]} 18... Nh5 {[%clk 0:02:13]} 19. Bxg7 {[%clk 0:02:30.2]} 19...
Kxg7 {[%clk 0:02:10.2]} 20. Bh3 {[%clk 0:02:26.9]} 20... Bxh3 {[%clk 0:02:07.1]}
21. Rxh3 {[%clk 0:02:27.8]} 21... Nf4 {[%clk 0:02:07.4]} 22. Rh2 {[%clk
0:02:18.7]} 22... Rc3 {[%clk 0:02:05.8]} 23. Rf2 {[%clk 0:02:10.6]} 23... Rxa3
{[%clk 0:02:03.6]} 24. Kb2 {[%clk 0:02:10.3]} 24... Ra5 {[%clk 0:02:01.6]} 25.
Rd4 {[%clk 0:02:07.5]} 25... h6 {[%clk 0:01:55.4]} 26. gxh6+ {[%clk 0:02:07.1]}
26... Kxh6 {[%clk 0:01:56.3]} 27. Rb4 {[%clk 0:02:06.5]} 27... b6 {[%clk
0:01:54.9]} 28. Rd2 {[%clk 0:02:00.2]} 28... Rc5 {[%clk 0:01:48.7]} 29. c4
{[%clk 0:01:59]} 29... Rh5 {[%clk 0:01:43.1]} 30. Rh2 {[%clk 0:01:57.6]} 30...
Nd3+ {[%clk 0:01:41.4]} 0-1

[Event "Late-Titled-Tuesday-Blitz-May-07-2024"]
[Site "Chess.com"]
[Date "2024.05.07"]
[Round "4"]
[White "Mischuk_D"]
[Black "yaguigor"]
[Result "1-0"]
[WhiteElo "2815"]
[BlackElo "2588"]
[TimeControl "180+1"]
[EndTime "14:35:38 PDT"]
[Termination "Mischuk_D won by resignation"]

1. d4 {[%clk 0:02:56.9]} 1... d5 {[%clk 0:02:59.8]} 2. c4 {[%clk 0:02:55.6]}
2... c6 {[%clk 0:02:59.6]} 3. Nc3 {[%clk 0:02:53]} 3... Nf6 {[%clk 0:02:59.5]}
4. e3 {[%clk 0:02:52.9]} 4... e6 {[%clk 0:02:59.1]} 5. a3 {[%clk 0:02:51.3]}
5... Nbd7 {[%clk 0:02:58.2]} 6. Nf3 {[%clk 0:02:47.1]} 6... Bd6 {[%clk
0:02:56.7]} 7. Bd2 {[%clk 0:02:41.7]} 7... O-O {[%clk 0:02:55.6]} 8. Qc2 {[%clk
0:02:37.8]} 8... e5 {[%clk 0:02:41.5]} 9. dxe5 {[%clk 0:02:35.4]} 9... Nxe5
{[%clk 0:02:40.9]} 10. Nxe5 {[%clk 0:02:32.4]} 10... Bxe5 {[%clk 0:02:40.5]} 11.
cxd5 {[%clk 0:02:29.9]} 11... cxd5 {[%clk 0:02:34.2]} 12. Be2 {[%clk 0:02:19.4]}
12... d4 {[%clk 0:02:26.8]} 13. exd4 {[%clk 0:02:19.4]} 13... Qxd4 {[%clk
0:02:25.6]} 14. Be3 {[%clk 0:02:19.2]} 14... Qh4 {[%clk 0:02:22.8]} 15. g3
{[%clk 0:02:10.2]} 15... Qh3 {[%clk 0:02:21]} 16. O-O-O {[%clk 0:02:09.5]} 16...
Bf5 {[%clk 0:02:18.8]} 17. Bd3 {[%clk 0:02:09.6]} 17... Bxd3 {[%clk 0:02:17.5]}
18. Rxd3 {[%clk 0:02:09.3]} 18... a6 {[%clk 0:02:09.5]} 19. Kb1 {[%clk
0:02:08.9]} 19... Rac8 {[%clk 0:02:06.3]} 20. Re1 {[%clk 0:02:02.3]} 20... Ne4
{[%clk 0:01:57.5]} 21. Bd2 {[%clk 0:01:50.7]} 21... Nxd2+ {[%clk 0:01:43.2]} 22.
Qxd2 {[%clk 0:01:50.8]} 22... Bxc3 {[%clk 0:01:41.4]} 23. Rxc3 {[%clk
0:01:51.1]} 23... Rxc3 {[%clk 0:01:40.1]} 24. Qxc3 {[%clk 0:01:51.1]} 24... Qxh2
{[%clk 0:01:38.4]} 25. Qf3 {[%clk 0:01:51.3]} 25... b5 {[%clk 0:01:33.6]} 26.
Rh1 {[%clk 0:01:50.6]} 1-0

[Event "Late-Titled-Tuesday-Blitz-May-07-2024"]
[Site "Chess.com"]
[Date "2024.05.07"]
[Round "4"]
[White "Rital44"]
[Black "Gareth-Bale11"]
[Result "0-1"]
[WhiteElo "2714"]
[BlackElo "2895"]
[TimeControl "180+1"]
[EndTime "14:35:41 PDT"]
[Termination "Gareth-Bale11 won by resignation"]

1. e4 {[%clk 0:03:00.9]} 1... c5 {[%clk 0:02:53.3]} 2. Nf3 {[%clk 0:03:00.1]}
2... Nc6 {[%clk 0:02:53]} 3. d4 {[%clk 0:02:54.1]} 3... cxd4 {[%clk 0:02:40.2]}
4. Nxd4 {[%clk 0:02:55]} 4... Nf6 {[%clk 0:02:40.4]} 5. Nc3 {[%clk 0:02:55.1]}
5... Qb6 {[%clk 0:02:39.8]} 6. Nb3 {[%clk 0:02:50.7]} 6... e6 {[%clk 0:02:39.6]}
7. Be3 {[%clk 0:02:50.1]} 7... Qc7 {[%clk 0:02:37.9]} 8. Qf3 {[%clk 0:02:48.3]}
8... a6 {[%clk 0:02:36.3]} 9. O-O-O {[%clk 0:02:47.5]} 9... b5 {[%clk
0:02:33.1]} 10. g4 {[%clk 0:02:36.9]} 10... b4 {[%clk 0:02:28]} 11. Na4 {[%clk
0:02:30.7]} 11... Ne5 {[%clk 0:02:23.5]} 12. Qg3 {[%clk 0:02:29.1]} 12... Nxe4
{[%clk 0:02:18.5]} 13. Qf4 {[%clk 0:02:26.8]} 13... Bb7 {[%clk 0:02:12.9]} 14.
Bb6 {[%clk 0:02:24.3]} 14... Nd3+ {[%clk 0:02:09.9]} 15. Bxd3 {[%clk 0:02:19.8]}
15... Qxf4+ {[%clk 0:02:10.8]} 16. Kb1 {[%clk 0:02:17.4]} 16... Rc8 {[%clk
0:02:00.1]} 17. Be3 {[%clk 0:02:14.8]} 17... Qb8 {[%clk 0:01:46.7]} 18. Nb6
{[%clk 0:02:14]} 18... Be7 {[%clk 0:01:36.4]} 19. Nxd7 {[%clk 0:02:10.2]} 19...
Qc7 {[%clk 0:01:24.8]} 20. f3 {[%clk 0:01:55.7]} 20... Qxd7 {[%clk 0:01:15.3]}
21. Bxe4 {[%clk 0:01:54.2]} 21... Bxe4 {[%clk 0:01:13.7]} 22. Rxd7 {[%clk
0:01:50.3]} 22... Bxc2+ {[%clk 0:01:10.9]} 0-1

[Event "Late-Titled-Tuesday-Blitz-May-07-2024"]
[Site "Chess.com"]
[Date "2024.05.07"]
[Round "4"]
[White "lluiss"]
[Black "Matalon"]
[Result "1-0"]
[WhiteElo "2223"]
[BlackElo "2391"]
[TimeControl "180+1"]
[EndTime "14:35:46 PDT"]
[Termination "lluiss won by resignation"]

1. Nf3 {[%clk 0:03:00]} 1... Nf6 {[%clk 0:02:58.9]} 2. d4 {[%clk 0:02:59.2]}
2... g6 {[%clk 0:02:58.8]} 3. g3 {[%clk 0:02:58.2]} 3... Bg7 {[%clk 0:02:59.1]}
4. Bg2 {[%clk 0:02:58.8]} 4... O-O {[%clk 0:02:59.2]} 5. O-O {[%clk 0:02:58.7]}
5... d6 {[%clk 0:02:59.8]} 6. c4 {[%clk 0:02:58.3]} 6... Nc6 {[%clk 0:02:58]} 7.
Nc3 {[%clk 0:02:58.3]} 7... Bg4 {[%clk 0:02:57]} 8. h3 {[%clk 0:02:55.7]} 8...
Bxf3 {[%clk 0:02:56.5]} 9. Bxf3 {[%clk 0:02:56.6]} 9... Nd7 {[%clk 0:02:56.6]}
10. Bxc6 {[%clk 0:02:48.1]} 10... bxc6 {[%clk 0:02:54.8]} 11. e4 {[%clk
0:02:48.7]} 11... Rb8 {[%clk 0:02:50.3]} 12. Rb1 {[%clk 0:02:27.3]} 12... c5
{[%clk 0:02:48.6]} 13. Be3 {[%clk 0:02:22.2]} 13... cxd4 {[%clk 0:02:47.3]} 14.
Bxd4 {[%clk 0:02:22.2]} 14... Ne5 {[%clk 0:02:48]} 15. b3 {[%clk 0:02:08.5]}
15... c5 {[%clk 0:02:31.1]} 16. Bxe5 {[%clk 0:02:07.6]} 16... Bxe5 {[%clk
0:02:30.9]} 17. Nd5 {[%clk 0:01:38.8]} 17... e6 {[%clk 0:02:29.8]} 18. Ne3
{[%clk 0:01:38.9]} 18... Qa5 {[%clk 0:02:28.9]} 19. Qc2 {[%clk 0:01:35.3]} 19...
Qb4 {[%clk 0:02:26.9]} 20. Rbd1 {[%clk 0:01:26.7]} 20... a5 {[%clk 0:02:26.2]}
21. Qd2 {[%clk 0:01:15.8]} 21... a4 {[%clk 0:02:24.2]} 22. Qxb4 {[%clk
0:01:07.8]} 22... Rxb4 {[%clk 0:02:24]} 23. Nc2 {[%clk 0:01:08]} 23... Rb7
{[%clk 0:02:23.4]} 24. f4 {[%clk 0:01:00]} 24... axb3 {[%clk 0:02:22]} 25. axb3
{[%clk 0:00:59.4]} 25... Bf6 {[%clk 0:02:21.1]} 26. Rxd6 {[%clk 0:00:59.2]}
26... Rb4 {[%clk 0:02:20.5]} 27. Nxb4 {[%clk 0:00:55.7]} 1-0

[Event "Late-Titled-Tuesday-Blitz-May-07-2024"]
[Site "Chess.com"]
[Date "2024.05.07"]
[Round "4"]
[White "ToddBryant"]
[Black "klifus"]
[Result "1-0"]
[WhiteElo "2384"]
[BlackElo "2172"]
[TimeControl "180+1"]
[EndTime "14:35:47 PDT"]
[Termination "ToddBryant won by checkmate"]

1. e4 {[%clk 0:03:00.9]} 1... c5 {[%clk 0:02:52.8]} 2. Nf3 {[%clk 0:03:00.8]}
2... d6 {[%clk 0:02:51.5]} 3. d4 {[%clk 0:03:01.4]} 3... cxd4 {[%clk 0:02:50.6]}
4. Nxd4 {[%clk 0:03:02.3]} 4... Nf6 {[%clk 0:02:50.3]} 5. Nc3 {[%clk 0:03:02.9]}
5... a6 {[%clk 0:02:50.4]} 6. Bg5 {[%clk 0:03:03.5]} 6... Nbd7 {[%clk
0:02:48.5]} 7. Qe2 {[%clk 0:03:02.8]} 7... b5 {[%clk 0:02:41.1]} 8. a3 {[%clk
0:03:02.5]} 8... Bb7 {[%clk 0:02:39.8]} 9. O-O-O {[%clk 0:03:02.2]} 9... Qc7
{[%clk 0:02:37.2]} 10. f4 {[%clk 0:03:00.9]} 10... e6 {[%clk 0:02:32.8]} 11. Kb1
{[%clk 0:02:58.3]} 11... Be7 {[%clk 0:02:29.3]} 12. Bh4 {[%clk 0:02:58.1]} 12...
O-O {[%clk 0:02:26.6]} 13. g4 {[%clk 0:02:46.6]} 13... Rfd8 {[%clk 0:02:19.5]}
14. g5 {[%clk 0:02:45.4]} 14... Ne8 {[%clk 0:02:18.2]} 15. Bh3 {[%clk
0:02:40.6]} 15... Nc5 {[%clk 0:02:12.3]} 16. Rhg1 {[%clk 0:02:35.1]} 16... g6
{[%clk 0:02:11.1]} 17. f5 {[%clk 0:02:30.6]} 17... e5 {[%clk 0:02:01.6]} 18.
fxg6 {[%clk 0:02:16.1]} 18... hxg6 {[%clk 0:01:58.4]} 19. Nf5 {[%clk 0:02:00.8]}
19... gxf5 {[%clk 0:01:55.6]} 20. exf5 {[%clk 0:02:01.7]} 20... Bf8 {[%clk
0:01:50.1]} 21. f6 {[%clk 0:01:48.4]} 21... d5 {[%clk 0:01:46.1]} 22. Qh5 {[%clk
0:01:34.5]} 22... d4 {[%clk 0:01:36.6]} 23. g6 {[%clk 0:01:34.4]} 23... Bg7
{[%clk 0:01:29.8]} 24. Qh7+ {[%clk 0:01:28.3]} 24... Kf8 {[%clk 0:01:26.2]} 25.
fxg7+ {[%clk 0:01:29.2]} 25... Nxg7 {[%clk 0:01:24.9]} 26. Qh8# {[%clk
0:01:29.8]} 1-0

[Event "Late-Titled-Tuesday-Blitz-May-07-2024"]
[Site "Chess.com"]
[Date "2024.05.07"]
[Round "4"]
[White "TheoSlade"]
[Black "VictorFcQNK"]
[Result "1-0"]
[WhiteElo "2465"]
[BlackElo "2107"]
[TimeControl "180+1"]
[EndTime "14:36:45 PDT"]
[Termination "TheoSlade won on time"]

1. d4 {[%clk 0:03:00.9]} 1... Nf6 {[%clk 0:02:49.1]} 2. c4 {[%clk 0:03:01.2]}
2... e6 {[%clk 0:02:44.9]} 3. g3 {[%clk 0:03:01.6]} 3... c5 {[%clk 0:02:41.5]}
4. d5 {[%clk 0:03:01.6]} 4... exd5 {[%clk 0:02:32.5]} 5. cxd5 {[%clk 0:03:02.5]}
5... d6 {[%clk 0:02:31.3]} 6. Nc3 {[%clk 0:03:03]} 6... Be7 {[%clk 0:02:25.6]}
7. Bg2 {[%clk 0:03:01.2]} 7... O-O {[%clk 0:02:25.4]} 8. Nf3 {[%clk 0:03:01.8]}
8... Na6 {[%clk 0:02:15]} 9. O-O {[%clk 0:03:01.9]} 9... Nc7 {[%clk 0:02:13.6]}
10. a4 {[%clk 0:03:00.9]} 10... b6 {[%clk 0:02:06]} 11. Nd2 {[%clk 0:02:57.8]}
11... a6 {[%clk 0:01:52.9]} 12. Nc4 {[%clk 0:02:56.6]} 12... Rb8 {[%clk
0:01:51.7]} 13. e4 {[%clk 0:02:54.3]} 13... Re8 {[%clk 0:01:39.9]} 14. e5 {[%clk
0:02:45.8]} 14... dxe5 {[%clk 0:00:50.2]} 15. d6 {[%clk 0:02:46.7]} 15... Be6
{[%clk 0:00:49.5]} 16. dxc7 {[%clk 0:02:26]} 16... Qxc7 {[%clk 0:00:24.8]} 17.
Qe2 {[%clk 0:02:26.3]} 17... Bg4 {[%clk 0:00:15.2]} 18. Qxe5 {[%clk 0:02:19.5]}
18... Qxe5 {[%clk 0:00:10.2]} 19. Nxe5 {[%clk 0:02:20]} 19... Bf5 {[%clk
0:00:09]} 20. Nc6 {[%clk 0:02:18.1]} 20... Rbc8 {[%clk 0:00:06.4]} 21. Nxe7+
{[%clk 0:02:16.4]} 21... Rxe7 {[%clk 0:00:06.8]} 22. Bg5 {[%clk 0:02:16.7]}
22... h6 {[%clk 0:00:05.5]} 23. Bxf6 {[%clk 0:02:16.7]} 23... gxf6 {[%clk
0:00:06]} 24. Rfe1 {[%clk 0:02:17.2]} 24... Rd7 {[%clk 0:00:04.9]} 25. Rad1
{[%clk 0:02:15.8]} 25... Rcd8 {[%clk 0:00:05.2]} 26. Rxd7 {[%clk 0:02:15.6]}
26... Rxd7 {[%clk 0:00:05.7]} 27. Rd1 {[%clk 0:02:10.6]} 27... Re7 {[%clk
0:00:05.3]} 28. Kf1 {[%clk 0:02:06.1]} 28... Be6 {[%clk 0:00:02.7]} 29. Nd5
{[%clk 0:02:04.3]} 1-0

[Event "Late-Titled-Tuesday-Blitz-May-07-2024"]
[Site "Chess.com"]
[Date "2024.05.07"]
[Round "4"]
[White "HeroWilczek"]
[Black "Onthequiet"]
[Result "0-1"]
[WhiteElo "2535"]
[BlackElo "2402"]
[TimeControl "180+1"]
[EndTime "14:36:50 PDT"]
[Termination "Onthequiet won by resignation"]

1. e4 {[%clk 0:03:00.9]} 1... c6 {[%clk 0:02:58.2]} 2. b3 {[%clk 0:02:58.9]}
2... d5 {[%clk 0:02:58.1]} 3. exd5 {[%clk 0:02:58.2]} 3... cxd5 {[%clk 0:02:59]}
4. Bb2 {[%clk 0:02:58.7]} 4... Nf6 {[%clk 0:02:59.5]} 5. Nf3 {[%clk 0:02:58.6]}
5... e6 {[%clk 0:03:00.4]} 6. Bb5+ {[%clk 0:02:55]} 6... Bd7 {[%clk 0:02:58.4]}
7. Qe2 {[%clk 0:02:54.9]} 7... Bxb5 {[%clk 0:02:55.8]} 8. Qxb5+ {[%clk
0:02:55.8]} 8... Qd7 {[%clk 0:02:56.2]} 9. Qe2 {[%clk 0:02:55.5]} 9... Be7
{[%clk 0:02:55.6]} 10. O-O {[%clk 0:02:56]} 10... Nc6 {[%clk 0:02:55.9]} 11. a4
{[%clk 0:02:51.2]} 11... Rc8 {[%clk 0:02:55.4]} 12. Na3 {[%clk 0:02:50.5]} 12...
a6 {[%clk 0:02:54.9]} 13. Rfe1 {[%clk 0:02:38.2]} 13... O-O {[%clk 0:02:53.7]}
14. h3 {[%clk 0:02:36.5]} 14... Ne4 {[%clk 0:02:30]} 15. d3 {[%clk 0:02:34.2]}
15... Bf6 {[%clk 0:02:27.2]} 16. Bxf6 {[%clk 0:02:17.4]} 16... Nxf6 {[%clk
0:02:28.1]} 17. Rac1 {[%clk 0:02:13.2]} 17... Qd6 {[%clk 0:02:25.2]} 18. Nb1
{[%clk 0:02:13.2]} 18... Qb4 {[%clk 0:02:20.9]} 19. Qd2 {[%clk 0:01:59.5]} 19...
Rc7 {[%clk 0:02:18.1]} 20. Qxb4 {[%clk 0:01:39.4]} 20... Nxb4 {[%clk 0:02:17.4]}
21. Re2 {[%clk 0:01:30.8]} 21... Nxd3 {[%clk 0:02:12.6]} 22. Rd1 {[%clk
0:01:24]} 22... Nb4 {[%clk 0:02:03.3]} 23. c3 {[%clk 0:01:24.4]} 23... Nc6
{[%clk 0:01:58.2]} 24. Ne5 {[%clk 0:01:18.9]} 24... Rfc8 {[%clk 0:01:52.6]} 25.
f3 {[%clk 0:01:17.7]} 25... g6 {[%clk 0:01:50.6]} 26. Kf2 {[%clk 0:01:14.2]}
26... h5 {[%clk 0:01:49.5]} 27. g4 {[%clk 0:01:14]} 27... Kg7 {[%clk 0:01:48.9]}
28. g5 {[%clk 0:01:13.1]} 28... Ng8 {[%clk 0:01:40.7]} 29. h4 {[%clk 0:01:12.9]}
29... Nxe5 {[%clk 0:01:37.8]} 30. Rxe5 {[%clk 0:01:12.8]} 30... Ne7 {[%clk
0:01:37.7]} 31. Kg3 {[%clk 0:01:00.8]} 31... Nf5+ {[%clk 0:01:37]} 32. Kh3
{[%clk 0:01:01.5]} 32... Rxc3 {[%clk 0:01:34.1]} 33. Nxc3 {[%clk 0:01:00.4]}
33... Rxc3 {[%clk 0:01:35]} 34. b4 {[%clk 0:00:52.6]} 34... Rxf3+ {[%clk
0:01:34]} 35. Kg2 {[%clk 0:00:53.2]} 35... Nxh4+ {[%clk 0:01:33]} 36. Kh2 {[%clk
0:00:53.9]} 36... Rb3 {[%clk 0:01:30.9]} 0-1